bitfinex/quotes_BTCUSD_20250927
["timestamp","ask_amount","ask_price","bid_price","bid_amount"]
[1759007393945,1.69224054,109690.0,109680.0,0.02026669]
[1759007394181,1.95948019,109690.0,109680.0,0.02026669]
[1759007396351,1.77706469,109690.0,109680.0,0.02026669]
[1759007397565,2.04430434,109690.0,109680.0,0.02026669]
[1759007400706,1.49394469,109690.0,109680.0,0.02345669]
[1759007401070,1.76118434,109690.0,109680.0,0.02345669]
[1759007401274,2.04442434,109690.0,109680.0,0.02345669]
[1759007403644,1.83160033,109690.0,109680.0,0.02345669]
[1759007404828,1.81729741,109690.0,109680.0,0.02345669]
[1759007407541,1.62618197,109690.0,109680.0,0.02345669]
[1759007409214,1.34294197,109690.0,109680.0,0.02345669]
[1759007410801,1.32863917,109690.0,109680.0,0.02345669]
[1759007411001,1.13664975,109690.0,109680.0,0.02345669]
[1759007411207,9.13664975,109690.0,109680.0,0.02345669]
[1759007413909,9.15095255,109690.0,109680.0,0.02345669]
[1759007425295,8.8837129,109690.0,109680.0,0.02345669]
[1759007447757,8.8694101,109690.0,109680.0,0.02345669]
[1759007451959,8.65544589,109690.0,109680.0,0.02345669]
[1759007452197,8.85685252,109690.0,109680.0,0.02345669]
[1759007452493,8.85685252,109690.0,109680.0,0.05089461]
[1759007452729,8.94589538,109690.0,109680.0,0.05089461]
[1759007456501,8.66411302,109690.0,109680.0,0.05089461]
[1759007457564,8.66411302,109690.0,109680.0,0.04770461]
[1759007457927,8.66411355,109690.0,109680.0,0.04770461]
[1759007458362,8.64783104,109690.0,109680.0,0.04770461]
[1759007458582,9.00411355,109690.0,109680.0,0.04770461]
[1759007462377,9.00411355,109690.0,109680.0,0.02026669]
[1759007475251,9.00411361,109690.0,109680.0,0.02026669]
[1759007479297,8.77643929,109690.0,109680.0,0.02026669]
[1759007491964,8.80387721,109690.0,109680.0,0.0477046]
[1759007512280,8.80387721,109690.0,109680.0,0.02026669]
[1759007514655,8.71482953,109690.0,109680.0,0.02026669]
[1759007518299,8.98206436,109690.0,109680.0,0.02026669]
[1759007526061,8.80197658,109690.0,109680.0,0.02026669]
[1759007526707,8.26750692,109690.0,109680.0,0.02026669]
[1759007526813,8.80197658,109690.0,109680.0,0.02026669]
[1759007530445,8.80197659,109690.0,109680.0,0.02026669]
[1759007537029,8.80197676,109690.0,109680.0,0.02026669]
[1759007540671,8.61485201,109690.0,109680.0,0.02026669]
[1759007544975,8.61485281,109690.0,109680.0,0.02026669]
[1759007556533,8.61485278,109690.0,109680.0,0.02026669]
[1759007574700,8.43671146,109690.0,109680.0,0.02026669]
[1759007582498,8.22734587,109690.0,109680.0,0.02026669]
[1759007593405,7.87101753,109690.0,109680.0,0.02026669]
[1759007593621,7.87101753,109690.0,109680.0,0.02349669]
[1759007593839,8.22734587,109690.0,109680.0,0.02349669]
[1759007594052,8.22734587,109690.0,109680.0,0.02026669]
[1759007595493,7.87101753,109690.0,109680.0,0.02026669]
[1759007595646,8.22734587,109690.0,109680.0,0.02026669]
[1759007604168,1.50208196,109680.0,109670.0,0.31374792]
[1759007604389,9.16058328,109680.0,109670.0,0.31374792]
[1759007604596,9.18421328,109680.0,109670.0,0.31572792]
[1759007605902,8.82788494,109680.0,109670.0,0.31572792]
[1759007606052,9.18421328,109680.0,109670.0,0.31572792]
[1759007606250,9.18421328,109680.0,109670.0,0.31672792]
[1759007606865,9.18421328,109680.0,109670.0,0.49909319]
[1759007608707,8.82788494,109680.0,109670.0,0.49909319]
[1759007608958,9.18421328,109680.0,109670.0,0.49909319]
[1759007609350,8.82788494,109680.0,109670.0,0.49909319]
[1759007609862,9.18421328,109680.0,109670.0,0.49909319]
[1759007610191,8.6377465,109680.0,109670.0,0.49909319]
[1759007610422,8.99407484,109680.0,109670.0,0.49909319]
[1759007616586,8.99407435,109680.0,109670.0,0.49909319]
[1759007622203,8.63774601,109680.0,109670.0,0.49909319]
[1759007622400,8.99407435,109680.0,109670.0,0.49909319]
[1759007625204,8.63774601,109680.0,109670.0,0.03364792]
[1759007625396,8.99407435,109680.0,109670.0,0.21601319]
[1759007625607,8.99407435,109680.0,109670.0,0.49965319]
[1759007625836,8.63774601,109680.0,109670.0,0.49965319]
[1759007626078,8.99407435,109680.0,109670.0,0.49965319]
[1759007627127,8.99605435,109680.0,109670.0,0.49965319]
[1759007632878,9.01035744,109680.0,109670.0,0.49965319]
[1759007635239,9.01035744,109680.0,109670.0,0.49642319]
[1759007636753,9.18852214,109680.0,109670.0,0.49642319]
[1759007637454,8.99530838,109680.0,109670.0,0.49642319]
[1759007640352,8.99699838,109680.0,109670.0,0.31199792]
[1759007640585,8.99530838,109680.0,109670.0,0.31199792]
[1759007641030,8.46081534,109680.0,109670.0,0.31199792]
[1759007641249,8.99530838,109680.0,109670.0,0.31199792]
[1759007641486,8.46081534,109680.0,109670.0,0.31199792]
[1759007641726,8.99530838,109680.0,109670.0,0.31199792]
[1759007641850,8.99530838,109680.0,109670.0,0.49436319]
[1759007644411,8.99530838,109680.0,109670.0,0.31199792]
[1759007645261,8.72806186,109680.0,109670.0,0.49436319]
[1759007645486,8.99530838,109680.0,109670.0,0.49436319]
[1759007646368,8.46081534,109680.0,109670.0,0.49632319]
[1759007646540,8.99530838,109680.0,109670.0,0.49632319]
[1759007649705,8.99530714,109680.0,109670.0,0.49632319]
[1759007650175,8.99530714,109680.0,109670.0,0.31395792]
[1759007650391,8.99530714,109680.0,109670.0,0.31711792]
[1759007654343,8.99530714,109680.0,109670.0,0.31395792]
[1759007655395,8.4608141,109680.0,109670.0,0.31711792]
[1759007655617,8.99530714,109680.0,109670.0,0.31711792]
[1759007659795,8.99699714,109680.0,109670.0,0.31195792]
[1759007660426,8.29736921,109680.0,109670.0,0.31402792]
[1759007660625,8.83186225,109680.0,109670.0,0.31402792]
[1759007664739,8.83186225,109680.0,109670.0,0.02843792]
[1759007664941,8.83355225,109680.0,109670.0,0.31195792]
[1759007665389,8.83186225,109680.0,109670.0,0.31195792]
[1759007669725,8.83355225,109680.0,109670.0,0.31199792]
[1759007670317,8.83186225,109680.0,109670.0,0.31199792]
[1759007670537,8.83186225,109680.0,109670.0,0.31406792]
[1759007672194,8.29736921,109680.0,109670.0,0.31406792]
[1759007672408,8.83186225,109680.0,109670.0,0.31406792]
[1759007674872,8.83186225,109680.0,109670.0,0.31199792]
[1759007675490,8.83186225,109680.0,109670.0,0.31406792]
[1759007678846,8.29736921,109680.0,109670.0,0.31406792]
[1759007679050,8.83186225,109680.0,109670.0,0.31406792]
[1759007684788,8.62082221,109680.0,109670.0,0.31406792]
[1759007687347,8.62082221,109680.0,109670.0,0.49643319]
[1759007688921,8.08632917,109680.0,109670.0,0.49643319]
[1759007689080,8.62082221,109680.0,109670.0,0.49643319]
[1759007695602,8.62082221,109680.0,109670.0,0.49743319]
[1759007696799,8.44268132,109680.0,109670.0,0.49743319]
[1759007698577,8.23500244,109680.0,109670.0,0.49743319]
[1759007700850,8.23500244,109680.0,109670.0,0.50067319]
[1759007702602,8.23500244,109680.0,109670.0,0.49743319]
[1759007705431,8.23500244,109680.0,109670.0,0.50067319]
[1759007707617,7.35432164,109680.0,109670.0,0.50067319]
[1759007710086,7.34001855,109680.0,109670.0,0.50067319]
[1759007712786,7.34001855,109680.0,109670.0,0.49967319]
[1759007713029,7.35432097,109680.0,109670.0,0.50467319]
[1759007718319,7.33359572,109680.0,109670.0,0.50467319]
[1759007720600,7.33359572,109680.0,109670.0,0.50443319]
[1759007720805,7.33359572,109680.0,109670.0,0.59943319]
[1759007721268,7.34789802,109680.0,109670.0,0.59943319]
[1759007722187,7.15758027,109680.0,109670.0,0.59943319]
[1759007723056,7.15758027,109680.0,109670.0,0.22111319]
[1759007723284,7.15758027,109680.0,109670.0,0.59939319]
[1759007723962,7.15971027,109680.0,109670.0,0.22111319]
[1759007724206,7.15971027,109680.0,109670.0,0.59939319]
[1759007724658,7.15971027,109680.0,109670.0,0.50115319]
[1759007724889,7.51606242,109680.0,109670.0,0.59615319]
[1759007725947,7.50176012,109680.0,109670.0,0.59615319]
[1759007726304,7.14540797,109680.0,109670.0,0.59615319]
[1759007728876,7.14540797,109680.0,109670.0,0.21787319]
[1759007729104,7.15971027,109680.0,109670.0,0.59627319]
[1759007730359,7.16612586,109680.0,109670.0,0.59627319]
[1759007733074,7.52247801,109680.0,109670.0,0.59627319]
[1759007734111,7.52247801,109680.0,109670.0,0.21787319]
[1759007734360,7.52247801,109680.0,109670.0,0.59627319]
[1759007734789,7.15758027,109680.0,109670.0,0.59927319]
[1759007736174,7.15758027,109680.0,109670.0,0.22087319]
[1759007736379,7.15758027,109680.0,109670.0,0.59935319]
[1759007738952,7.15758027,109680.0,109670.0,0.22087319]
[1759007739199,7.15758027,109680.0,109670.0,0.59931319]
[1759007754127,7.15758027,109680.0,109670.0,0.22087319]
[1759007754338,7.15758027,109680.0,109670.0,0.59923319]
[1759007755771,7.15758027,109680.0,109670.0,0.22087319]
[1759007755983,7.15758027,109680.0,109670.0,0.59919319]
[1759007756453,7.15758027,109680.0,109670.0,0.50419319]
[1759007756849,7.15758027,109680.0,109670.0,0.59919319]
[1759007757435,6.95091825,109680.0,109670.0,0.59919319]
[1759007761119,6.95091825,109680.0,109670.0,0.50415319]
[1759007761252,6.95091825,109680.0,109670.0,0.59915319]
[1759007761726,6.95091825,109680.0,109670.0,0.50415319]
[1759007761904,6.95091825,109680.0,109670.0,0.59915319]
[1759007762128,7.40407273,109680.0,109670.0,0.59408319]
[1759007762342,7.41049376,109680.0,109670.0,0.59408319]
[1759007762559,7.41049376,109680.0,109670.0,0.21580319]
[1759007762765,7.41049376,109680.0,109670.0,0.59412319]
[1759007763052,7.41049376,109680.0,109670.0,0.49920319]
[1759007763241,7.41049376,109680.0,109670.0,0.59420319]
[1759007763859,7.41049376,109680.0,109670.0,0.21580319]
[1759007764066,7.41049376,109680.0,109670.0,0.59416319]
[1759007765087,7.40407273,109680.0,109670.0,0.59416319]
[1759007765701,7.22003408,109680.0,109670.0,0.59416319]
[1759007767922,7.40238273,109680.0,109670.0,0.59416319]
[1759007768609,6.94239113,109680.0,109670.0,0.59416319]
[1759007768863,7.20954696,109680.0,109670.0,0.59416319]
[1759007771467,7.02719831,109680.0,109670.0,0.59416319]
[1759007771876,7.02719831,109680.0,109670.0,0.59632319]
[1759007777824,6.83444788,109680.0,109670.0,0.59632319]
[1759007783368,6.64171714,109680.0,109670.0,0.59632319]
[1759007783778,6.64340714,109680.0,109670.0,0.59416319]
[1759007784308,6.64171714,109680.0,109670.0,0.59416319]
[1759007789565,6.37456131,109680.0,109670.0,0.59416319]
[1759007789766,6.64171714,109680.0,109670.0,0.59416319]
[1759007790716,6.37456131,109680.0,109670.0,0.59618319]
[1759007791365,6.38098436,109680.0,109670.0,0.59618319]
[1759007791573,6.64814019,109680.0,109670.0,0.59618319]
[1759007800688,6.38098436,109680.0,109670.0,0.59618319]
[1759007800921,6.64814019,109680.0,109670.0,0.59618319]
[1759007801123,6.44916552,109680.0,109670.0,0.59618319]
[1759007810940,6.63151417,109680.0,109670.0,0.59618319]
[1759007816397,6.36435834,109680.0,109670.0,0.59618319]
[1759007816696,6.63151417,109680.0,109670.0,0.59618319]
[1759007818527,6.36435834,109680.0,109670.0,0.59618319]
[1759007827060,6.36435912,109680.0,109670.0,0.59618319]
[1759007844856,6.36435915,109680.0,109670.0,0.59618319]
[1759007859752,6.13575447,109680.0,109670.0,0.59618319]
[1759007862725,6.13575444,109680.0,109670.0,0.59618319]
[1759007880635,6.40294883,109680.0,109670.0,0.59618319]
[1759007884300,6.22060018,109680.0,109670.0,0.59618319]
[1759007887408,6.03971769,109680.0,109670.0,0.59618319]
[1759007890022,5.86889012,109680.0,109670.0,0.59618319]
[1759007891707,5.86889011,109680.0,109670.0,0.59618319]
[1759007892900,5.60169572,109680.0,109670.0,0.59926319]
[1759007893107,5.86889011,109680.0,109670.0,0.59926319]
[1759007893324,5.86246631,109680.0,109670.0,0.59618319]
[1759007895488,6.04481496,109680.0,109670.0,0.59618319]
[1759007896076,5.77762057,109680.0,109670.0,0.59618319]
[1759007896298,6.04481496,109680.0,109670.0,0.59618319]
[1759007896920,5.77762057,109680.0,109670.0,0.59618319]
[1759007897121,6.04481496,109680.0,109670.0,0.59618319]
[1759007901492,6.04285496,109680.0,109670.0,0.59927319]
[1759007903163,6.04285496,109680.0,109670.0,0.22091319]
[1759007903366,6.04285496,109680.0,109670.0,0.59923319]
[1759007904336,6.04483496,109680.0,109670.0,0.59923319]
[1759007907740,6.31202935,109680.0,109670.0,0.59923319]
[1759007908379,6.1296807,109680.0,109670.0,0.59923319]
[1759007910040,6.1296807,109680.0,109670.0,0.59614319]
[1759007916394,6.1296807,109680.0,109670.0,0.59923319]
[1759007919345,6.1296807,109680.0,109670.0,0.59614319]
[1759007922275,6.13610441,109680.0,109670.0,0.59614319]
[1759007922695,5.60171563,109680.0,109670.0,0.21782319]
[1759007922844,6.13610441,109680.0,109670.0,0.59606319]
[1759007927632,5.60171563,109680.0,109670.0,0.59915319]
[1759007927845,5.86891002,109680.0,109670.0,0.59915319]
[1759007928071,5.86891002,109680.0,109670.0,0.59606319]
[1759007928908,6.13610441,109680.0,109670.0,0.59606319]
[1759007931120,6.13610441,109680.0,109670.0,0.21782319]
[1759007931341,5.86693002,109680.0,109670.0,0.21782319]
[1759007931531,5.86050631,109680.0,109670.0,0.50432319]
[1759007931734,5.86050631,109680.0,109670.0,0.59932319]
[1759007935265,6.1277007,109680.0,109670.0,0.59932319]
[1759007935672,6.1298307,109680.0,109670.0,0.59932319]
[1759007937582,6.1298307,109680.0,109670.0,0.22096319]
[1759007937811,6.1298307,109680.0,109670.0,0.59928319]
[1759007939258,5.90107942,109680.0,109670.0,0.59928319]
[1759007940813,5.63388503,109680.0,109670.0,0.22096319]
[1759007941024,5.63388503,109680.0,109670.0,0.59928319]
[1759007942570,5.43045899,109680.0,109670.0,0.22096319]
[1759007942784,5.43045899,109680.0,109670.0,0.59924319]
[1759007942785,5.51952554,109680.0,109670.0,0.59924319]
[1759007944910,5.51952554,109680.0,109670.0,0.22096319]
[1759007945123,5.51952554,109680.0,109670.0,0.59928319]
[1759007947868,5.51952554,109680.0,109670.0,0.59614319]
[1759007948303,5.1632646,109680.0,109670.0,0.21782319]
[1759007948483,5.1632646,109680.0,109670.0,0.59408319]
[1759007948733,5.51952554,109680.0,109670.0,0.59408319]
[1759007965962,5.51801544,109680.0,109670.0,0.59408319]
[1759007971231,5.51801544,109680.0,109670.0,0.49916319]
[1759007971455,5.51801544,109680.0,109670.0,0.59416319]
[1759007973740,5.29325697,109680.0,109670.0,0.59416319]
[1759007974848,5.10423362,109680.0,109670.0,0.59416319]
[1759007975846,4.74797268,109680.0,109670.0,0.59416319]
[1759007976085,5.10423362,109680.0,109670.0,0.59416319]
[1759007979329,5.10423362,109680.0,109670.0,0.59632319]
[1759008003356,4.74797268,109680.0,109670.0,0.59632319]
[1759008003603,5.10423362,109680.0,109670.0,0.59632319]
[1759008004673,5.01517543,109680.0,109670.0,0.59632319]
[1759008010904,5.28237818,109680.0,109670.0,0.59632319]
[1759008011133,5.08167841,109680.0,109670.0,0.59632319]
[1759008019195,4.88956853,109680.0,109670.0,0.59632319]
[1759008021675,4.69735625,109680.0,109670.0,0.59632319]
[1759008034337,4.4301535,109680.0,109670.0,0.59632319]
[1759008040023,4.4301535,109680.0,109670.0,0.59432319]
[1759008040419,4.4301535,109680.0,109670.0,0.59532319]
[1759008040853,4.4301535,109680.0,109670.0,0.60032319]
[1759008042623,4.23130681,109680.0,109670.0,0.60032319]
[1759008042824,4.23130681,109680.0,109670.0,0.60337319]
[1759008047323,4.49850956,109680.0,109670.0,0.60337319]
[1759008049790,4.23130681,109680.0,109670.0,0.60337319]
[1759008057883,4.02077328,109680.0,109670.0,0.60337319]
[1759008060563,3.75357053,109680.0,109670.0,0.60032319]
[1759008060767,4.02077328,109680.0,109670.0,0.60032319]
[1759008064709,4.10983941,109680.0,109670.0,0.60032319]
[1759008071374,3.75357053,109680.0,109670.0,0.60032319]
[1759008071505,4.10983941,109680.0,109670.0,0.60032319]
[1759008081601,4.10983941,109680.0,109670.0,0.60020319]
[1759008114931,3.88239431,109680.0,109670.0,0.60020319]
[1759008116286,3.71732255,109680.0,109670.0,0.60020319]
[1759008124468,3.36105367,109680.0,109670.0,0.60020319]
[1759008124687,3.89552167,109680.0,109670.0,0.60020319]
[1759008129824,3.36105367,109680.0,109670.0,0.60020319]
[1759008130036,3.89552167,109680.0,109670.0,0.60020319]
[1759008140934,3.72260446,109680.0,109670.0,0.60020319]
[1759008152345,3.54820373,109680.0,109670.0,0.60020319]
[1759008182729,3.37901365,109680.0,109670.0,0.60020319]
[1759008184708,3.20085451,109680.0,109670.0,0.60020319]
[1759008185364,2.99200349,109680.0,109670.0,0.60020319]
[1759008199273,2.80405064,109680.0,109670.0,0.60020319]
[1759008209193,2.44774178,109680.0,109670.0,0.50516319]
[1759008209375,2.80405064,109680.0,109670.0,0.60016319]
[1759008214658,2.58397793,109680.0,109670.0,0.60016319]
[1759008219923,2.58397793,109680.0,109670.0,0.60311319]
[1759008220124,2.58397793,109680.0,109670.0,0.22491319]
[1759008220427,2.58397793,109680.0,109670.0,0.60311319]
[1759008221163,2.58397793,109680.0,109670.0,0.22491319]
[1759008221304,2.58397793,109680.0,109670.0,0.60311319]
[1759008222145,2.58397793,109680.0,109670.0,0.22491319]
[1759008222341,2.58397793,109680.0,109670.0,0.60311319]
[1759008224257,2.58397793,109680.0,109670.0,0.22491319]
[1759008224405,2.58397793,109680.0,109670.0,0.60311319]
[1759008226726,2.58397793,109680.0,109670.0,0.22491319]
[1759008226848,2.58397793,109680.0,109670.0,0.60311319]
[1759008229094,2.58397793,109680.0,109670.0,0.22491319]
[1759008229244,2.58397793,109680.0,109670.0,0.60311319]
[1759008243947,2.37971553,109680.0,109670.0,0.60311319]
[1759008244640,2.29060601,109680.0,109670.0,0.60311319]
[1759008250692,2.29060601,109680.0,109670.0,0.22491319]
[1759008250994,2.29060601,109680.0,109670.0,0.50811319]
[1759008251012,2.29060601,109680.0,109670.0,0.60311319]
[1759008258084,2.29060601,109680.0,109670.0,0.22491319]
[1759008258299,2.29060601,109680.0,109670.0,0.60311319]
[1759008260455,8.29176764,109680.0,109670.0,0.60311319]
[1759008262692,8.55896698,109680.0,109670.0,0.60311319]
[1759008263099,8.55896698,109680.0,109670.0,0.50807319]
[1759008263313,8.55896698,109680.0,109670.0,0.60307319]
[1759008268271,8.29176764,109680.0,109670.0,0.60307319]
[1759008270026,8.29176764,109680.0,109670.0,0.60012319]
[1759008270428,8.12507234,109680.0,109670.0,0.60012319]
[1759008270820,8.12507234,109680.0,109670.0,0.62459319]
[1759008271581,8.12507234,109680.0,109670.0,0.62758319]
[1759008271724,8.39227168,109680.0,109670.0,0.62758319]
[1759008280240,8.39227168,109680.0,109670.0,0.24942319]
[1759008280461,8.39227168,109680.0,109670.0,0.62758319]
[1759008282045,8.39227168,109680.0,109670.0,0.53258319]
[1759008282283,8.39227168,109680.0,109670.0,0.62758319]
[1759008282488,8.39227168,109680.0,109670.0,0.62459319]
[1759008286975,7.857873,109680.0,109670.0,0.62459319]
[1759008287196,8.39227168,109680.0,109670.0,0.62459319]
[1759008291277,8.39227168,109680.0,109670.0,0.62779319]
[1759008295994,8.39227168,109680.0,109670.0,0.62772529]
[1759008306778,8.21414921,109680.0,109670.0,0.62772529]
[1759008308753,7.98631621,109680.0,109670.0,0.62772529]
[1759008309906,7.79261675,109680.0,109670.0,0.62772529]
[1759008313763,7.79261675,109680.0,109670.0,0.62452529]
[1759008315625,7.63004,109680.0,109670.0,0.62452529]
[1759008315825,7.98631621,109680.0,109670.0,0.62452529]
[1759008318786,7.98631621,109680.0,109670.0,0.62749529]
[1759008319736,7.63004,109680.0,109670.0,0.62749529]
[1759008338672,7.63004,109680.0,109670.0,0.24933529]
[1759008338930,7.63004,109680.0,109670.0,0.62452529]
[1759008340587,7.63004,109680.0,109670.0,0.24636529]
[1759008340774,7.63004,109680.0,109670.0,0.62452529]
[1759008340962,7.63004,109680.0,109670.0,0.24636529]
[1759008341161,7.450551,109680.0,109670.0,0.62452529]
[1759008343379,7.450551,109680.0,109670.0,0.24636529]
[1759008343583,7.450551,109680.0,109670.0,0.62236529]
[1759008344222,7.80682721,109680.0,109670.0,0.62236529]
[1759008352551,7.80682721,109680.0,109670.0,0.24420529]
[1759008352725,7.80682721,109680.0,109670.0,0.62232529]
[1759008366745,7.71775283,109680.0,109670.0,0.62232529]
[1759008369635,7.71775283,109680.0,109670.0,0.62737529]
[1759008373204,7.53481283,109680.0,109670.0,0.62737529]
[1759008384497,7.53481283,109680.0,109670.0,0.24925529]
[1759008384999,7.53481283,109680.0,109670.0,0.62753529]
[1759008392323,7.53481283,109680.0,109670.0,0.53249529]
[1759008392528,7.53481283,109680.0,109670.0,0.62749529]
[1759008393528,7.53481283,109680.0,109670.0,0.62453529]
[1759008394794,7.53481283,109680.0,109670.0,0.24629529]
[1759008395000,7.53481283,109680.0,109670.0,0.62453529]
[1759008403560,7.35603188,109680.0,109670.0,0.62453529]
[1759008406324,7.35603188,109680.0,109670.0,0.62777529]
[1759008416899,7.44392783,109680.0,109670.0,0.62777529]
[1759008428785,7.176726,109680.0,109670.0,0.62777529]
[1759008434465,7.176726,109680.0,109670.0,0.62449529]
[1759008434873,7.176726,109680.0,109670.0,0.24629529]
[1759008435128,7.176726,109680.0,109670.0,0.62449529]
[1759008437234,7.176726,109680.0,109670.0,0.24629529]
[1759008437458,7.176726,109680.0,109670.0,0.62449529]
[1759008438822,7.176726,109680.0,109670.0,0.62747529]
[1759008443820,6.985264,109680.0,109670.0,0.62747529]
[1759008446027,6.985264,109680.0,109670.0,0.24927529]
[1759008446226,6.985264,109680.0,109670.0,0.62465529]
[1759008449821,6.985264,109680.0,109670.0,0.62766529]
[1759008453300,6.985264,109680.0,109670.0,0.98390837]
[1759008455332,6.985264,109680.0,109670.0,0.88890837]
[1759008455653,6.985264,109680.0,109670.0,0.98390837]
[1759008459500,6.985264,109680.0,109670.0,0.62766529]
[1759008461058,6.985264,109680.0,109670.0,0.24930529]
[1759008461269,6.985264,109680.0,109670.0,0.62762529]
[1759008461932,6.985264,109680.0,109670.0,0.24930529]
[1759008462118,6.985264,109680.0,109670.0,0.62762529]
[1759008462291,6.985264,109680.0,109670.0,0.24930529]
[1759008462462,6.985264,109680.0,109670.0,0.62252529]
[1759008463467,6.985264,109680.0,109670.0,0.62248529]
[1759008464339,6.785227,109680.0,109670.0,0.62248529]
[1759008464556,0.56276722,109690.0,109680.0,0.18234865]
[1759008464763,6.99175114,109690.0,109680.0,0.18234865]
[1759008464970,6.99175114,109690.0,109680.0,0.20575865]
[1759008465102,6.99175114,109690.0,109680.0,0.23318676]
[1759008465741,6.99175114,109690.0,109680.0,0.23618676]
[1759008465953,6.99175114,109690.0,109680.0,0.23818676]
[1759008467433,6.809417,109690.0,109680.0,0.23818676]
[1759008469168,6.599296,109690.0,109680.0,0.23818676]
[1759008481492,6.599296,109690.0,109680.0,0.61650676]
[1759008482766,6.78162802,109690.0,109680.0,0.23818676]
[1759008483039,6.78162802,109690.0,109680.0,0.61650676]
[1759008484684,7.1378711,109690.0,109680.0,0.61650676]
[1759008485985,6.78162802,109690.0,109680.0,0.61650676]
[1759008486832,6.78162802,109690.0,109680.0,0.23818676]
[1759008487240,6.78162802,109690.0,109680.0,0.61646676]
[1759008487659,6.56546602,109690.0,109680.0,0.61646676]
[1759008490676,6.65028412,109690.0,109680.0,0.61646676]
[1759008491585,6.83261614,109690.0,109680.0,0.61646676]
[1759008491788,6.56546602,109690.0,109680.0,0.61646676]
[1759008492063,6.56546602,109690.0,109680.0,0.61851676]
[1759008492318,6.83261614,109690.0,109680.0,0.61851676]
[1759008493413,6.65028412,109690.0,109680.0,0.61851676]
[1759008493888,6.65028412,109690.0,109680.0,0.62171676]
[1759008503782,6.65028412,109690.0,109680.0,0.24343676]
[1759008504001,6.65028412,109690.0,109680.0,0.62171676]
[1759008510885,6.47296743,109690.0,109680.0,0.62171676]
[1759008511076,6.47296712,109690.0,109680.0,0.62171676]
[1759008514602,6.47296712,109690.0,109680.0,0.24343676]
[1759008514832,6.47296712,109690.0,109680.0,0.62171676]
[1759008519827,6.205817,109690.0,109680.0,0.88886688]
[1759008520436,6.205817,109690.0,109680.0,0.62171676]
[1759008521525,6.205817,109690.0,109680.0,0.61971676]
[1759008521728,6.205817,109690.0,109680.0,0.61671676]
[1759008521937,6.205817,109690.0,109680.0,0.62571676]
[1759008524338,6.205817,109690.0,109680.0,0.53067676]
[1759008524537,6.205817,109690.0,109680.0,0.24743676]
[1759008524759,6.205817,109690.0,109680.0,0.62567676]
[1759008525861,6.205817,109690.0,109680.0,0.69327632]
[1759008526902,6.205817,109690.0,109680.0,0.31503632]
[1759008527147,6.205817,109690.0,109680.0,0.69327632]
[1759008541545,6.205817,109690.0,109680.0,0.59819632]
[1759008541860,6.205817,109690.0,109680.0,0.69319632]
[1759008543241,6.012922,109690.0,109680.0,0.69319632]
[1759008571838,5.788456,109690.0,109680.0,0.69319632]
[1759008573017,5.621662,109690.0,109680.0,0.69319632]
[1759008580398,5.420315,109690.0,109680.0,0.68999632]
[1759008582691,5.21009695,109690.0,109680.0,0.68999632]
[1759008582896,5.210097,109690.0,109680.0,0.68999632]
[1759008590929,5.210097,109690.0,109680.0,0.69311632]
[1759008604295,5.210097,109690.0,109680.0,0.68811632]
[1759008604501,5.210097,109690.0,109680.0,0.68411632]
[1759008604710,5.210097,109690.0,109680.0,0.68911632]
[1759008604903,5.210097,109690.0,109680.0,0.68811632]
[1759008605109,5.210097,109690.0,109680.0,0.69511632]
[1759008606359,5.210097,109690.0,109680.0,0.69111632]
[1759008606577,5.210097,109690.0,109680.0,0.69611632]
[1759008608656,5.00592,109690.0,109680.0,0.69611632]
[1759008613962,5.00592,109690.0,109680.0,0.31795632]
[1759008614177,5.00592,109690.0,109680.0,0.69611632]
[1759008614627,5.27304167,109690.0,109680.0,0.69611632]
[1759008621479,5.27304167,109690.0,109680.0,0.31795632]
[1759008621726,5.27304167,109690.0,109680.0,0.69295632]
[1759008625916,5.07430367,109690.0,109680.0,0.69295632]
[1759008633828,5.08072591,109690.0,109680.0,0.69295632]
[1759008637332,4.87113189,109690.0,109680.0,0.69295632]
[1759008638962,4.87113189,109690.0,109680.0,0.69090632]
[1759008641828,4.87113189,109690.0,109680.0,0.59602632]
[1759008642032,4.87113189,109690.0,109680.0,0.69102632]
[1759008654968,4.87113189,109690.0,109680.0,0.69302632]
[1759008659403,4.87113189,109690.0,109680.0,0.69618632]
[1759008660792,4.87113189,109690.0,109680.0,0.31478632]
[1759008660999,4.87113189,109690.0,109680.0,0.59598632]
[1759008661220,4.87113189,109690.0,109680.0,0.69098632]
[1759008664147,4.87113189,109690.0,109680.0,0.31278632]
[1759008664276,4.87113189,109690.0,109680.0,0.69098632]
[1759008666050,4.91970892,109690.0,109680.0,0.69098632]
[1759008666286,4.91970891,109690.0,109680.0,0.69098632]
[1759008667010,4.65258724,109690.0,109680.0,0.69098632]
[1759008667226,4.91970891,109690.0,109680.0,0.69298632]
[1759008667637,4.91970891,109690.0,109680.0,0.69614632]
[1759008668305,4.65258724,109690.0,109680.0,0.69614632]
[1759008668515,4.91970891,109690.0,109680.0,0.69614632]
[1759008671168,4.91970837,109690.0,109680.0,0.69614632]
[1759008674761,4.6525867,109690.0,109680.0,0.69614632]
[1759008684067,4.6525867,109690.0,109680.0,0.62854676]
[1759008697401,4.65258742,109690.0,109680.0,0.62854676]
[1759008705518,4.46237842,109690.0,109680.0,0.62854676]
[1759008709318,4.250268,109690.0,109680.0,0.62854676]
[1759008718894,4.050321,109690.0,109680.0,0.62854676]
[1759008723824,3.821065,109690.0,109680.0,0.62854676]
[1759008732653,3.820749,109690.0,109680.0,0.62854676]
[1759008736646,3.820749,109690.0,109680.0,0.895639]
[1759008741845,3.81160299,109690.0,109680.0,0.895639]
[1759008747423,3.81160299,109690.0,109680.0,1.16273124]
[1759008747688,3.81160299,109690.0,109680.0,0.895639]
[1759008748105,3.81802539,109690.0,109680.0,0.895639]
[1759008750933,3.81802539,109690.0,109680.0,0.25034676]
[1759008751232,3.6190064,109690.0,109680.0,0.896159]
[1759008751433,3.454626,109690.0,109680.0,0.896159]
[1759008758090,3.454626,109690.0,109680.0,0.25034676]
[1759008758336,3.454626,109690.0,109680.0,0.896119]
[1759008758762,3.454626,109690.0,109680.0,0.517439]
[1759008758940,3.454626,109690.0,109680.0,0.896119]
[1759008760353,3.454626,109690.0,109680.0,0.896079]
[1759008770269,3.4610482,109690.0,109680.0,0.896079]
[1759008772330,3.4610482,109690.0,109680.0,0.895999]
[1759008773245,3.454626,109690.0,109680.0,0.895999]
[1759008775611,3.46104826,109690.0,109680.0,0.895999]
[1759008778068,3.24971526,109690.0,109680.0,0.895999]
[1759008782418,3.24971556,109690.0,109680.0,0.895999]
[1759008790715,3.08885456,109690.0,109680.0,0.895999]
[1759008793892,3.08885456,109690.0,109680.0,0.62890676]
[1759008794099,3.08885456,109690.0,109680.0,0.895999]
[1759008795463,3.08885456,109690.0,109680.0,0.62890676]
[1759008795674,3.08885456,109690.0,109680.0,0.895999]
[1759008796673,3.08885456,109690.0,109680.0,0.62890676]
[1759008801199,2.887509,109690.0,109680.0,0.62890676]
[1759008809629,2.668609,109690.0,109680.0,0.62890676]
[1759008832000,2.498278,109690.0,109680.0,0.62890676]
[1759008838693,2.268713,109690.0,109680.0,0.62890676]